[Event "57th Biel Festival MTO 2024"]
[White "Tahay,Alexis"]
[Black "Bommini Mounika Akshaya"]
[Site "Biel"]
[Round "2.27"]
[Annotator "RC"]
[Result "1/2-1/2"]
[Date "2024.07.16"]
[WhiteElo "2375"]
[BlackElo "2140"]
[PlyCount "115"]
[TimeControl "60"]

1. e4 {[%emt 0:0:5]} c5 {[%emt 0:1:50]} 2. Nf3 {[%emt 0:0:8]} e6 {[%emt 0:0:8]} 3. d4 {[%emt 0:0:15]} cxd4 {[%emt 0:0:9]} 4. Nxd4 {[%emt 0:0:24]} Nf6 {[%emt 0:0:21]} 5. Bd3 {[%emt 0:0:42]} Nc6 {[%emt 0:0:10]} 6. Nxc6 {[%emt 0:0:9]} bxc6 {[%emt 0:3:31]} 7. Bf4 d5 {[%emt 0:5:20]} 8. Nd2 {[%emt 0:4:0]} a5 {[%emt 0:5:5]} 9. O-O {[%emt 0:4:49]} Ba6 {[%emt 0:10:52]} 10. Bxa6 {[%emt 0:8:46]} Rxa6 {[%emt 0:0:19]} 11. Re1 {[%emt 0:9:28]} Rb6 {[%emt 0:20:11]} 12. exd5 {[%emt 0:7:10]} cxd5 {[%emt 0:1:9]} 13. c4 {[%emt 0:34:31]} Rxb2 {[%emt 0:26:10]} 14. Be5 Rb7 {[%emt 0:15:39]} 15. Qa4+ {[%emt 0:9:55]} Qd7 {[%emt 0:3:6]} 16. Qxa5 {[%emt 0:7:27]} Bd6 {[%emt 0:7:45]} 17. Bxf6 {[%emt 0:2:43]} gxf6 {[%emt 0:0:0]} 18. cxd5 {[%emt 0:0:0]} Ke7 19. Ne4 {[%emt 0:8:15]} Bb4 {[%emt 0:0:35]} 20. d6+ {[%emt 0:0:0]} Bxd6 {[%emt 0:7:23]} 21. Rad1 Qc7 {[%emt 0:7:14]} 22. Qh5 {[%emt 0:0:0]} Be5 {[%emt 0:1:53]} 23. Qh4 {[%emt 0:0:0]} Rb4 {[%emt 0:0:0]} 24. f4 Bb2 25. Re2 {[%emt 0:0:0]} Rd8 {[%emt 0:2:13]} 26. Rf1 {[%emt 0:0:0]} Qc4 {[%emt 0:0:12]} 27. Ng3 {[%emt 0:0:0]} Qd3 {[%emt 0:0:0]} 28. Qh5 {[%emt 0:0:0]} Bd4+ {[%emt 0:0:0]} 29. Kh1 Rb5 {[%emt 0:0:51]} 30. Qg4 {[%emt 0:0:0]} Rdb8 {[%emt 0:0:0]} 31. h4 Rb1 {[%emt 0:0:59]} 32. Ree1 {[%emt 0:1:8]} Rxe1 {[%emt 0:0:0]} 33. Rxe1 Rb1 {[%emt 0:0:20]} 34. Rxb1 {[%emt 0:0:0]} Qxb1+ {[%emt 0:0:0]} 35. Kh2 {[%emt 0:0:0]} Qxa2 {[%emt 0:0:0]} 36. Qf3 {[%emt 0:0:0]} Qb1 {[%emt 0:0:0]} 37. Qa3+ Kd8 {[%emt 0:9:46]} 38. Qf8+ {[%emt 0:0:0]} Kd7 {[%emt 0:0:0]} 39. Qxf7+ {[%emt 0:0:0]} Kd6 {[%emt 0:0:0]} 40. Kh3 {[%emt 0:4:28]} Qd3 {[%emt 0:1:11]} 41. Qf8+ {[%emt 0:50:41]} Kd7 {[%emt 0:0:0]} 42. Kh2 {[%emt 0:0:0]} Bf2 {[%emt 0:3:3]} 43. Nh5 {[%emt 0:0:0]} Bxh4 {[%emt 0:4:1]} 44. Nxf6+ {[%emt 0:1:38]} Bxf6 {[%emt 0:1:45]} 45. Qxf6 {[%emt 0:0:0]} Qg6 {[%emt 0:6:3]} 46. Qe5 {[%emt 0:0:0]} Ke7 {[%emt 0:4:6]} 47. Kh3 {[%emt 0:5:48]} h5 {[%emt 0:3:17]} 48. Qc7+ {[%emt 0:0:0]} Kf8 {[%emt 0:2:43]} 49. Qb8+ {[%emt 0:0:0]} Kg7 {[%emt 0:0:36]} 50. Qe5+ {[%emt 0:0:0]} Kf7 {[%emt 0:0:28]} 51. Qc7+ {[%emt 0:5:36]} Kg8 {[%emt 0:1:38]} 52. Qc8+ {[%emt 0:0:0]} Kh7 {[%emt 0:1:13]} 53. Qc7+ {[%emt 0:0:0]} Kh6 {[%emt 0:3:36]} 54. Qe5 {[%emt 0:0:0]} Qg4+ {[%emt 0:0:2]} 55. Kh2 {[%emt 0:0:0]} Kg6 {[%emt 0:1:5]} 56. Qe4+ {[%emt 0:0:0]} Kf6 {[%emt 0:1:38]} 57. Kg1 {[%emt 0:0:0]} h4 {[%emt 0:2:4]} 58. Qe5+ {[%emt 0:0:0]} 1/2-1/2

[Event "57th Biel Festival MTO 2024"]
[White "Smirnov,Mark"]
[Black "Kalogridis,Antonios"]
[Site "Biel"]
[Round "2.28"]
[Annotator "RC"]
[Result "1/2-1/2"]
[Date "2024.07.16"]
[WhiteElo "2203"]
[BlackElo "2391"]
[PlyCount "128"]
[TimeControl "60"]

1. e4 {[%emt 0:0:4]} c5 {[%emt 0:0:2]} 2. Nf3 {[%emt 0:0:6]} Nc6 {[%emt 0:0:4]} 3. d4 {[%emt 0:0:10]} cxd4 {[%emt 0:0:3]} 4. Nxd4 {[%emt 0:0:7]} Nf6 {[%emt 0:0:3]} 5. Nc3 {[%emt 0:0:7]} d6 {[%emt 0:0:3]} 6. Bg5 {[%emt 0:0:44]} e6 {[%emt 0:0:5]} 7. Qd2 {[%emt 0:0:7]} a6 {[%emt 0:0:4]} 8. Nxc6 {[%emt 0:1:20]} bxc6 {[%emt 0:0:6]} 9. O-O-O {[%emt 0:0:5]} Be7 {[%emt 0:0:9]} 10. Bxf6 {[%emt 0:1:39]} gxf6 {[%emt 0:0:5]} 11. Bc4 {[%emt 0:0:7]} Rb8 {[%emt 0:0:8]} 12. Bb3 {[%emt 0:2:5]} O-O {[%emt 0:0:8]} 13. Qh6 {[%emt 0:3:34]} Kh8 {[%emt 0:7:22]} 14. Rd3 {[%emt 0:0:13]} Rg8 {[%emt 0:0:5]} 15. Rh3 {[%emt 0:1:9]} Rg7 {[%emt 0:0:6]} 16. f4 {[%emt 0:0:50]} Qg8 {[%emt 0:0:24]} 17. Bc4 {[%emt 0:11:12]} Rg6 {[%emt 0:30:35]} 18. Qh5 {[%emt 0:2:54]} d5 {[%emt 0:5:35]} 19. Bd3 {[%emt 0:1:0]} e5 {[%emt 0:2:34]} 20. exd5 {[%emt 0:7:17]} Bg4 {[%emt 0:0:26]} 21. Qh4 {[%emt 0:0:17]} e4 {[%emt 0:4:16]} 22. Nxe4 {[%emt 0:18:19]} Bd8 {[%emt 0:18:35]} 23. f5 {[%emt 0:6:27]} Bxf5 {[%emt 0:0:9]} 24. Re3 {[%emt 0:31:21]} cxd5 {[%emt 0:5:27]} 25. Nd6 {[%emt 0:4:16]} Be4 {[%emt 0:4:22]} 26. Bxe4 {[%emt 0:5:0]} dxe4 {[%emt 0:4:57]} 27. Qxe4 {[%emt 0:0:56]} f5 {[%emt 0:1:35]} 28. Qf4 {[%emt 0:9:18]} Bf6 {[%emt 0:11:1]} 29. c3 {[%emt 0:2:22]} Rd8 {[%emt 0:5:15]} 30. Rd1 {[%emt 0:1:18]} Bg5 {[%emt 0:0:22]} 31. Qe5+ {[%emt 0:1:0]} f6 {[%emt 0:1:21]} 32. Qe7 {[%emt 0:0:30]} Rg7 {[%emt 0:1:40]} 33. Qxd8 {[%emt 0:0:35]} Bxe3+ {[%emt 0:0:8]} 34. Kc2 {[%emt 0:0:13]} Qxd8 {[%emt 0:0:44]} 35. Nf7+ {[%emt 0:0:1]} Rxf7 {[%emt 0:0:8]} 36. Rxd8+ {[%emt 0:0:6]} Kg7 {[%emt 0:0:4]} 37. b4 {[%emt 0:0:54]} Rc7 {[%emt 0:3:8]} 38. Kd3 {[%emt 0:1:3]} Bf4 {[%emt 0:0:4]} 39. c4 {[%emt 0:0:15]} Bxh2 {[%emt 0:0:55]} 40. c5 {[%emt 0:0:43]} a5 {[%emt 0:3:22]} 41. a3 {[%emt 0:50:7]} axb4 {[%emt 0:50:33]} 42. axb4 {[%emt 0:0:1]} Kf7 {[%emt 0:2:17]} 43. Kc4 {[%emt 0:0:46]} Ke6 {[%emt 0:2:0]} 44. b5 {[%emt 0:1:11]} Bg1 {[%emt 0:1:8]} 45. c6 {[%emt 0:0:38]} f4 {[%emt 0:0:0]} 46. Re8+ {[%emt 0:0:0]} Re7 {[%emt 0:0:0]} 47. Rf8 {[%emt 0:0:0]} Bf2 {[%emt 0:0:0]} 48. Kb4 {[%emt 0:0:0]} h5 {[%emt 0:0:0]} 49. Ra8 {[%emt 0:0:0]} Bb6 {[%emt 0:0:0]} 50. Ra6 {[%emt 0:0:0]} Bc7 {[%emt 0:0:0]} 51. b6 {[%emt 0:0:0]} Bd6+ {[%emt 0:0:0]} 52. Kb5 {[%emt 0:0:0]} h4 {[%emt 0:0:0]} 53. Ra1 {[%emt 0:0:0]} f3 {[%emt 0:0:0]} 54. gxf3 {[%emt 0:0:0]} h3 {[%emt 0:0:0]} 55. Re1+ {[%emt 0:0:0]} Kf7 {[%emt 0:0:0]} 56. Rc1 {[%emt 0:0:0]} h2 {[%emt 0:0:0]} 57. c7 {[%emt 0:0:0]} Re8 {[%emt 0:0:0]} 58. b7 {[%emt 0:0:0]} Bxc7 {[%emt 0:0:0]} 59. Rxc7+ {[%emt 0:0:0]} Re7 {[%emt 0:0:0]} 60. b8=Q {[%emt 0:0:0]} h1=Q {[%emt 0:0:0]} 61. Rxe7+ {[%emt 0:0:0]} Kxe7 {[%emt 0:6:55]} 62. Qb7+ {[%emt 0:0:0]} Ke6 {[%emt 0:0:17]} 63. Qe4+ {[%emt 0:0:0]} Kf7 {[%emt 0:0:7]} 64. Kc4 {[%emt 0:0:0]} Qc1+ {[%emt 0:0:25]} 1/2-1/2

[Event "57th Biel Festival MTO 2024"]
[White "Assaubayeva,Bibisara"]
[Black "Erne,Raphael"]
[Site "Biel"]
[Round "2.29"]
[Annotator "TA"]
[Result "1-0"]
[Date "2024.07.16"]
[WhiteElo "2472"]
[BlackElo "2102"]
[PlyCount "61"]
[TimeControl "60"]

{[%evp 20,61,52,58,91,40,126,127,148,143,157,159,138,153,182,167,190,184,181,194,184,197,229,195,536,556,538,586,568,541,517,508,482,469,1290,1244,1879,2285,1854,729,692,666,808,797]} 1. c4 {[%emt 0:0:5]} c5 {[%emt 0:0:15]} 2. Nf3 {[%emt 0:0:29]} Nc6 {[%emt 0:0:50]} 3. Nc3 {[%emt 0:0:24]} g6 {[%emt 0:1:39]} 4. e3 {[%emt 0:1:43]} d6 {[%emt 0:6:6]} 5. d4 {[%emt 0:1:59]} cxd4 {[%emt 0:1:0]} 6. exd4 {[%emt 0:0:43]} Bg4 {[%emt 0:4:25]} 7. Be2 {[%emt 0:2:40]} Bg7 {[%emt 0:2:11]} 8. Be3 {[%emt 0:0:11]} Nf6 {[%emt 0:2:3]} 9. h3 {[%emt 0:1:41]} Bxf3 {[%emt 0:0:58]} 10. Bxf3 {[%emt 0:0:8]} O-O {[%emt 0:0:37]} 11. O-O {[%emt 0:0:11]} Qd7 {[%emt 0:6:2]} 12. Rc1 {[%emt 0:3:7]} (12. d5 $16 Ne5 13. Be2 )Rfd8 {[%emt 0:4:56] [#]} (12... e6 $14 )13. d5 $1 $16 {[%emt 0:5:45]} Nb8 {[%emt 0:10:3] White is better.} 14. b4 {[%emt 0:2:23] White is more active.} Na6 {[%emt 0:17:4]} 15. Qb3 {[%emt 0:0:55]} Nc7 {[%emt 0:8:27]} 16. Rfd1 {[%emt 0:0:40]} b6 {[%emt 0:2:52]} 17. Ne2 {[%emt 0:5:5][%cal Bc3e2,Be2d4,Bd4c6][%mdl 32]} Qe8 {[%emt 0:7:3]} 18. Nd4 {[%emt 0:1:13]} Rdc8 {[%emt 0:1:43]} 19. Nc6 {[%emt 0:1:24]} Nd7 {[%emt 0:1:52]} 20. Bg5 {[%emt 0:1:26] Black is weak on the light squares} f6 {[%emt 0:4:0]} 21. Bf4 {[%emt 0:0:15][%cal Oc4c5] And now c5! would win.} Nb8 $2 {[%emt 0:2:25]} (21... Bf8 {is a better chance.} 22. a3 Qf7 )22. c5 $18 {[%emt 0:3:45] White is clearly winning.} bxc5 {[%emt 0:3:47] [#]} 23. Nxe7+ $1 {[%emt 0:10:11][%mdl 512]} Qxe7 {[%emt 0:0:13] [#]} 24. Bxd6 $1 {[%emt 0:0:36][%mdl 512]} Qxd6 {[%emt 0:0:42]} 25. bxc5 {[%emt 0:0:6]} (25. Rxc5 $2 a6 26. h4 f5 $19 )Qd7 {[%emt 0:4:12]} 26. d6+ {[%emt 0:0:20][%cal Bd5d6,Bd6d7][%mdl 32]} Ne6 {[%emt 0:0:9]} (26... Kh8 $142 27. dxc7 Qxc7 28. Bxa8 f5 )27. Bxa8 {[%emt 0:0:50]} Nc6 {[%emt 0:1:0]} 28. Bxc6 {[%emt 0:6:32]} Rxc6 {[%emt 0:0:5] [#]} 29. Qxe6+ $3 {[%emt 0:0:14][%mdl 512]} Qxe6 {[%emt 0:1:12]} 30. d7 {[%emt 0:0:4]} Rc8 {[%emt 0:0:5]} 31. Rd6 {[%emt 0:0:11] Black did not feel at home in the position after the opening.   Weighted Error Value: White=0.11 (very precise) /Black=0.44.  Mistake:       	White=1     	Black=3      Inaccurate:     	---       	Black=1      OK:         	White=10    	Black=4      Best:        	White=1     	---        Strong:       	White=1     	---} (31. d8=B $2 {perishes.} Bf8 (31... Qxa2 $2 32. Be7 $19 )32. Rb1 Bxc5 $19 (32... Rxc5 $2 33. Rf1 $19 ))1-0

[Event "57th Biel Festival MTO 2024"]
[White "Krishnan,Ritvik"]
[Black "Razafindratsima,Timothe"]
[Site "Biel"]
[Round "2.30"]
[Annotator "RC"]
[Result "0-1"]
[Date "2024.07.16"]
[WhiteElo "2297"]
[BlackElo "2445"]
[PlyCount "64"]
[TimeControl "60"]

1. e4 {[%emt 0:0:2]} c5 {[%emt 0:0:10]} 2. Nf3 {[%emt 0:0:6]} d6 {[%emt 0:0:5]} 3. d4 {[%emt 0:0:4]} cxd4 {[%emt 0:0:4]} 4. Nxd4 {[%emt 0:0:4]} Nf6 {[%emt 0:0:6]} 5. Nc3 {[%emt 0:0:5]} a6 {[%emt 0:0:4]} 6. Qd3 {[%emt 0:0:7]} Nbd7 {[%emt 0:2:5]} 7. Be2 {[%emt 0:0:11]} g6 {[%emt 0:2:34]} 8. Bg5 {[%emt 0:0:39]} Bg7 {[%emt 0:0:14]} 9. O-O-O {[%emt 0:1:22]} Qc7 {[%emt 0:16:28]} 10. f4 {[%emt 0:21:40]} h6 {[%emt 0:14:45]} 11. Bh4 {[%emt 0:5:8]} O-O {[%emt 0:0:19]} 12. Nb3 {[%emt 0:10:1]} b5 {[%emt 0:8:13]} 13. a3 {[%emt 0:4:51]} Nb6 {[%emt 0:14:10]} 14. Bf3 {[%emt 0:3:11]} Rb8 {[%emt 0:6:29]} 15. Kb1 {[%emt 0:12:53]} Be6 {[%emt 0:2:26]} 16. e5 {[%emt 0:12:51]} dxe5 {[%emt 0:7:18]} 17. fxe5 {[%emt 0:0:54]} Ng4 {[%emt 0:0:17]} 18. Nd4 {[%emt 0:16:0]} Nxe5 {[%emt 0:10:55]} 19. Nxe6 {[%emt 0:4:57]} fxe6 {[%emt 0:0:19]} 20. Qe4 {[%emt 0:1:4]} Na4 {[%emt 0:0:48]} 21. Be1 {[%emt 0:3:29]} g5 {[%emt 0:10:46]} 22. Kc1 {[%emt 0:5:3]} Nxb2 {[%emt 0:2:47]} 23. Kxb2 {[%emt 0:0:44]} Rf4 {[%emt 0:0:9]} 24. Qe2 {[%emt 0:1:9]} b4 {[%emt 0:0:19]} 25. axb4 {[%emt 0:0:49]} Nxf3 {[%emt 0:0:48]} 26. gxf3 {[%emt 0:0:58]} Rfxb4+ {[%emt 0:0:25]} 27. Kc1 {[%emt 0:0:15]} Qf4+ {[%emt 0:0:13]} 28. Rd2 {[%emt 0:1:2]} Rb1+ {[%emt 0:0:18]} 29. Nxb1 {[%emt 0:0:26]} Rxb1+ {[%emt 0:0:7]} 30. Kxb1 {[%emt 0:0:2]} Qb4+ {[%emt 0:0:4]} 31. Kc1 {[%emt 0:0:6]} Qb2+ {[%emt 0:0:4]} 32. Kd1 {[%emt 0:0:3]} Qb1# {[%emt 0:0:4]} 0-1

[Event "57th Biel Festival MTO 2024"]
[White "Petkidis,Anthony"]
[Black "Saine,Zachary"]
[Site "Biel"]
[Round "2.31"]
[Annotator "TA"]
[Result "1-0"]
[Date "2024.07.16"]
[WhiteElo "2427"]
[BlackElo "2035"]
[PlyCount "77"]
[TimeControl "60"]

{[%evp 10,77,47,46,50,64,72,78,64,62,80,82,92,49,43,8,153,139,191,127,117,68,61,59,95,95,179,184,185,134,205,226,224,235,232,171,152,149,147,150,167,177,186,191,189,191,181,177,391,386,405,391,389,377,597,534,672,671,645,534,1353,1256,5043,1313,1405,1308,1114,877,29997,29998]} 1. e4 {[%emt 0:0:4]} c5 {[%emt 0:0:6]} 2. Nf3 {[%emt 0:0:7]} d6 {[%emt 0:0:7]} 3. d4 {[%emt 0:0:5]} cxd4 {[%emt 0:0:5]} 4. Nxd4 {[%emt 0:0:5]} Nf6 {[%emt 0:0:5]} 5. Nc3 {[%emt 0:0:7]} g6 {[%emt 0:0:6]} 6. Be3 {[%emt 0:0:8]} Nc6 {[%emt 0:0:5]} 7. f3 {[%emt 0:0:45] Wards off Ng4} e5 {[%emt 0:0:15]} 8. Nb3 {[%emt 0:2:35]} Be6 {[%emt 0:0:8] White is better.} 9. Qe2 {[%emt 0:12:0]} Bg7 {[%emt 0:2:0]} 10. O-O-O {[%emt 0:1:26]} O-O {[%emt 0:1:3]} 11. Qd2 {[%emt 0:3:38]} Qc8 $1 {[%emt 0:1:41]} 12. Kb1 {[%emt 0:5:52]} a5 {[%emt 0:4:3]} (12... d5 $11 13. Nxd5 (13. exd5 Nxd5 14. Nxd5 Bxd5 $15 )Nxd5 14. exd5 Bxd5 )13. Bb5 {[%emt 0:4:28]} ({Not} 13. Qxd6 a4 14. Nc1 (14. Nc5 $2 Rd8 $19 )a3 $15 )Rd8 {[%emt 0:11:49] [#]} (13... d5 $16 )14. Bb6 {[%emt 0:22:17]} (14. Na4 $1 $18 )Rd7 $16 {[%emt 0:9:47]} 15. Nd5 {[%emt 0:2:8]} (15. Bf2 $16 )a4 $14 {[%emt 0:0:23]} 16. Nc1 {[%emt 0:0:28] White is much more active.} a3 {[%emt 0:1:10]} 17. b3 {[%emt 0:0:12]} Qf8 {[%emt 0:6:11]} (17... Bxd5 $16 18. exd5 Ne7 )18. Ne2 $18 {[%emt 0:3:13]} Rc8 {[%emt 0:6:12]} 19. c4 {[%emt 0:0:44]} ({Better is} 19. h4 $18 )Nh5 {[%emt 0:2:58]} (19... Ne8 $16 20. Qc1 f5 21. Qxa3 fxe4 )20. g4 {[%emt 0:3:5]} Nf4 {[%emt 0:0:30]} 21. Nexf4 {[%emt 0:4:56]} exf4 {[%emt 0:0:10]} 22. Nxf4 {[%emt 0:6:47]} Qe7 {[%emt 0:2:45] aiming for ...Qf6.} 23. Bxc6 {[%emt 0:2:5]} bxc6 {[%emt 0:0:42] [#]} 24. Bd4 {[%emt 0:0:17]} Bh6 {[%emt 0:0:53][%cal Oe6g4] [#]} 25. Nxg6 $1 {[%emt 0:28:9][%mdl 512]} Qg5 {[%emt 0:15:54]} ({But not} 25... Bxd2 26. Nxe7+ Rxe7 27. Rxd2 $18 )26. Qxg5 {[%emt 0:0:20]} Bxg5 {[%emt 0:0:4]} 27. h4 $1 {[%emt 0:0:6][%cal Bh2h4,Bh4g5,Bg5f6][%mdl 32]} Bh6 {[%emt 0:0:5] Inhibits Nf8.} 28. g5 $1 {[%emt 0:0:3]} Bxg5 {[%emt 0:0:37]} (28... hxg6 29. gxh6 Kh7 )29. Nf8 {[%emt 0:2:21]} Rxf8 {[%emt 0:19:0]} 30. hxg5 {[%emt 0:0:8] Bf6 would kill now.} f5 {[%emt 0:0:4]} 31. gxf6 {[%emt 0:0:17] Strongly threatening f4.} Rff7 {[%emt 0:0:5]} (31... Kf7 {was worth a try.} 32. Rxh7+ Kg6 )32. f4 {[%emt 0:2:41][%cal Bf3f4,Bf4f5][%mdl 32]} Rd8 {[%emt 0:0:19]} 33. f5 {[%emt 0:0:6]} Bc8 {[%emt 0:0:17]} 34. Rdg1+ {[%emt 0:0:22]} Kh8 {[%emt 0:0:13]} 35. Rg5 {[%emt 0:0:28]} Re8 {[%emt 0:1:3]} 36. Rh4 {[%emt 0:2:4]} (36. Rhg1 $142 Ref8 37. Rg7 )c5 {[%emt 0:0:4]} 37. Bc3 {[%emt 0:0:13]} Bb7 {[%emt 0:0:5]} 38. Rgg4 {[%emt 0:0:16]} Rg8 {[%emt 0:1:31] [#]} 39. Rxh7+ $3 {[%emt 0:0:44][%mdl 512] Weighted Error Value: White=0.18 (very precise) /Black=0.45.  Mistake:       	White=3     	Black=6      Inaccurate:     	White=2     	Black=2      OK:         	White=15    	Black=9      Best:        	White=2     	Black=1      Strong:       	White=2     	Black=1} 1-0

[Event "57th Biel Festival MTO 2024"]
[White "Munguntuul,Batkhuyag"]
[Black "Woltery,Nicolai"]
[Site "Biel"]
[Round "2.32"]
[Annotator "TA"]
[Result "1-0"]
[Date "2024.07.16"]
[WhiteElo "2376"]
[BlackElo "2016"]
[PlyCount "61"]
[TimeControl "60"]

{[%evp 10,61,18,12,23,-10,-2,-14,0,0,0,0,0,0,0,0,-7,-21,0,-4,25,0,0,0,0,0,0,-27,3,0,0,-4,-9,-10,-8,0,-3,-6,0,-84,0,0,0,0,91,96,49,82,29993,29994,29994,29995,29998,29999]} 1. e4 {[%emt 0:0:3]} d5 {[%emt 0:0:3]} 2. exd5 {[%emt 0:0:8]} Qxd5 {[%emt 0:0:5]} 3. d4 {[%emt 0:0:30]} Nc6 {[%emt 0:3:43]} 4. Nf3 {[%emt 0:2:5]} Bg4 {[%emt 0:0:45]} 5. Be2 {[%emt 0:0:9]} O-O-O {[%emt 0:2:36]} 6. Be3 {[%emt 0:1:32]} e5 {[%emt 0:3:55][%cal Re5d4]} 7. c4 {[%emt 0:3:17]} Qa5+ {[%emt 0:2:2]} 8. Bd2 {[%emt 0:3:1]} Bb4 {[%emt 0:0:57] The position is equal.} 9. d5 {[%emt 0:11:30]} Bxf3 {[%emt 0:1:10]} 10. Bxf3 {[%emt 0:0:38]} Nd4 {[%emt 0:0:42]} 11. a3 {[%emt 0:1:48]} Bxd2+ {[%emt 0:2:12]} 12. Nxd2 {[%emt 0:0:7]} f5 {[%emt 0:34:3]} 13. b4 {[%emt 0:15:24]} Qa6 {[%emt 0:5:5]} 14. O-O {[%emt 0:1:59]} Qg6 {[%emt 0:10:8]} 15. Bh5 {[%emt 0:21:45]} ({Better is} 15. Nb3 Nxb3 16. Qxb3 )Qg5 $11 {[%emt 0:6:1]} 16. f4 {[%emt 0:8:13]} exf4 {[%emt 0:4:7]} 17. Nf3 {[%emt 0:0:56]} Nxf3+ {[%emt 0:1:35]} 18. Bxf3 {[%emt 0:0:2]} Nf6 {[%emt 0:10:20]} 19. Qd4 {[%emt 0:2:57]} Kb8 {[%emt 0:0:0]} 20. a4 {[%emt 0:0:41][%cal Ba3a4,Ba4a5,Ba5a6][%mdl 32]} Rhe8 {[%emt 0:1:50]} 21. a5 {[%emt 0:1:33]} Ne4 {[%emt 0:2:41]} 22. a6 {[%emt 0:5:45] Strongly threatening axb7.} b6 {[%emt 0:6:1]} 23. c5 {[%emt 0:0:57]} Qf6 {[%emt 0:0:15]} 24. Qd3 {[%emt 0:0:13] [#]} (24. Qxf6 $11 {keeps the balance.} Nxf6 25. d6 )Qb2 {[%emt 0:7:24]} (24... g5 $1 $17 {[%cal Rg5g4] ...g4 is the strong threat.} 25. h3 (25. d6 cxd6 26. Qd5 Re7 $17 )h5 26. Bxh5 Re5 )25. Rab1 $1 $36 {[%emt 0:3:43][%mdl 2048] White has some pressure.} Qe5 {[%emt 0:0:8]} 26. Rbd1 {[%emt 0:6:20]} ({Much weaker is} 26. d6 cxd6 27. cxb6 axb6 28. a7+ Ka8 $17 )Ng5 {[%emt 0:2:18]} (26... c6 $11 {remains equal.} )27. Qb5 {[%emt 0:1:55]} Nxf3+ {[%emt 0:0:42]} 28. gxf3 {[%emt 0:3:39] Qc6 would kill now.} Re7 $2 {[%emt 0:1:3][%mdl 8192]} (28... Rxd5 29. Qc6 (29. Rxd5 Qe3+ 30. Kh1 Qe6 $18 )Qe3+ 30. Kh1 )(28... Qe3+ $16 29. Rf2 Re6 )29. Qc6 {[%emt 0:0:50][%csl Ga6][%cal Rc6b7] White mates.} Kc8 {[%emt 0:1:6]} 30. d6 {[%emt 0:0:30][%cal Bd5d6,Bd6d7][%mdl 32]} Rf7 {[%emt 0:0:58] [#]} 31. d7+ $1 {[%emt 0:0:46][%mdl 512] Weighted Error Value: White=0.10 (very precise) /Black=0.28 (precise) .  Loses game:     	---       	Black=1      Mistake:       	White=2     	Black=2      Inaccurate:     	White=2     	Black=2      OK:         	White=8     	Black=14     Best:        	White=2     	Black=1      Strong:       	White=1     	---} 1-0

[Event "57th Biel Festival MTO 2024"]
[White "Smeets,Kobe"]
[Black "Tellarini,Lorenzo"]
[Site "Biel"]
[Round "2.33"]
[Annotator "RC"]
[Result "1-0"]
[Date "2024.07.16"]
[WhiteElo "2324"]
[BlackElo "1953"]
[PlyCount "145"]
[TimeControl "60"]

1. e4 {[%emt 0:0:5]} c5 {[%emt 0:0:2]} 2. Nf3 {[%emt 0:0:10]} e6 {[%emt 0:0:3]} 3. d4 {[%emt 0:0:11]} cxd4 {[%emt 0:0:4]} 4. Nxd4 {[%emt 0:0:9]} Nc6 {[%emt 0:0:3]} 5. Nc3 {[%emt 0:0:9]} d6 {[%emt 0:0:3]} 6. Qd3 {[%emt 0:0:5]} Nf6 {[%emt 0:1:34]} 7. Bg5 {[%emt 0:0:9]} Be7 {[%emt 0:0:40]} 8. O-O-O {[%emt 0:0:12]} a6 {[%emt 0:0:58]} 9. Nxc6 {[%emt 0:0:5]} bxc6 {[%emt 0:0:29]} 10. Qg3 {[%emt 0:0:6]} d5 {[%emt 0:17:40]} 11. e5 {[%emt 0:19:21]} Nh5 {[%emt 0:3:23]} 12. Bxe7 {[%emt 0:0:6]} Qxe7 {[%emt 0:1:24]} 13. Qe3 {[%emt 0:5:59]} Qb4 {[%emt 0:5:16]} 14. Rd4 {[%emt 0:20:10]} Qb6 {[%emt 0:4:40]} 15. Na4 {[%emt 0:4:43]} Qa5 {[%emt 0:4:19]} 16. Be2 {[%emt 0:12:19]} g6 {[%emt 0:3:40]} 17. Bxh5 {[%emt 0:0:47]} gxh5 {[%emt 0:0:12]} 18. Qa3 {[%emt 0:7:31]} Bd7 {[%emt 0:6:23]} 19. Qd6 {[%emt 0:3:51]} Rc8 {[%emt 0:3:17]} 20. Nc5 {[%emt 0:5:5]} Qc7 {[%emt 0:2:30]} 21. Qxc7 {[%emt 0:0:5]} Rxc7 {[%emt 0:0:8]} 22. Re1 {[%emt 0:7:18]} Rg8 {[%emt 0:2:56]} 23. g3 {[%emt 0:0:21]} Rg4 {[%emt 0:1:1]} 24. Rxg4 {[%emt 0:0:5]} hxg4 {[%emt 0:0:17]} 25. Re3 {[%emt 0:0:22]} Bc8 {[%emt 0:12:3]} 26. f4 {[%emt 0:5:12]} Ra7 {[%emt 0:8:39]} 27. Kd2 {[%emt 0:2:20]} Kd8 {[%emt 0:2:22]} 28. Kc3 {[%emt 0:0:54]} Kc7 {[%emt 0:0:49]} 29. Kd4 {[%emt 0:0:5]} Ra8 {[%emt 0:1:27]} 30. Rb3 {[%emt 0:2:46]} a5 {[%emt 0:5:14]} 31. a3 {[%emt 0:9:21]} Ba6 {[%emt 0:2:43]} 32. a4 {[%emt 0:0:1]} Ra7 {[%emt 0:1:1]} 33. Ra3 {[%emt 0:1:46]} Bc4 {[%emt 0:5:25]} 34. c3 {[%emt 0:1:8]} Ra8 {[%emt 0:1:44]} 35. b3 {[%emt 0:0:10]} Be2 {[%emt 0:1:15]} 36. Ra2 {[%emt 0:0:21]} Ba6 {[%emt 0:1:35]} 37. Ra1 {[%emt 0:0:41]} Be2 {[%emt 0:0:58]} 38. Ra2 {[%emt 0:1:17]} Ba6 {[%emt 0:0:18]} 39. Rf2 {[%emt 0:0:7]} Bc8 {[%emt 0:0:40]} 40. h3 {[%emt 0:0:14]} gxh3 {[%emt 0:1:29]} 41. Rh2 {[%emt 0:50:7]} Bb7 {[%emt 0:50:52]} 42. Rxh3 {[%emt 0:0:10]} Rh8 {[%emt 0:0:22]} 43. g4 {[%emt 0:0:44]} h6 {[%emt 0:0:49]} 44. Rh5 {[%emt 0:0:40]} Rg8 {[%emt 0:1:44]} 45. Rxh6 {[%emt 0:0:9]} Rxg4 {[%emt 0:0:9]} 46. Rf6 {[%emt 0:0:11]} Rg7 {[%emt 0:0:39]} 47. Rxe6 {[%emt 0:0:52]} Bc8 {[%emt 0:1:4]} 48. Re7+ {[%emt 0:1:1]} Kd8 {[%emt 0:3:2]} 49. Ra7 {[%emt 0:0:15]} Bh3 {[%emt 0:0:0]} 50. e6 {[%emt 0:0:0]} Ke8 {[%emt 0:0:0]} 51. exf7+ {[%emt 0:0:0]} Rxf7 {[%emt 0:0:0]} 52. Rxf7 {[%emt 0:0:0]} Kxf7 {[%emt 0:0:0]} 53. Ke5 {[%emt 0:0:0]} Ke7 {[%emt 0:0:0]} 54. Nb7 {[%emt 0:0:0]} Bg4 {[%emt 0:0:0]} 55. Nxa5 {[%emt 0:0:0]} Kd7 {[%emt 0:0:0]} 56. Nb7 {[%emt 0:0:0]} Bd1 {[%emt 0:0:0]} 57. Nc5+ {[%emt 0:0:0]} Kc7 {[%emt 0:0:0]} 58. a5 {[%emt 0:0:0]} Be2 {[%emt 0:0:0]} 59. f5 {[%emt 0:0:0]} Bg4 {[%emt 0:0:0]} 60. f6 {[%emt 0:0:0]} Bh5 {[%emt 0:0:0]} 61. Ke6 {[%emt 0:0:0]} Bg4+ {[%emt 0:0:0]} 62. Ke7 {[%emt 0:0:0]} Bh5 {[%emt 0:0:0]} 63. f7 {[%emt 0:0:0]} Bxf7 {[%emt 0:0:0]} 64. Kxf7 {[%emt 0:0:0]} Kd6 {[%emt 0:0:0]} 65. a6 {[%emt 0:0:0]} Kc7 {[%emt 0:0:0]} 66. Ke7 {[%emt 0:0:0]} Kb6 {[%emt 0:0:0]} 67. Kd6 {[%emt 0:0:0]} d4 {[%emt 0:0:0]} 68. cxd4 {[%emt 0:0:0]} Ka7 {[%emt 0:0:0]} 69. Kc7 {[%emt 0:0:0]} Ka8 {[%emt 0:0:0]} 70. Kb6 {[%emt 0:0:0]} Kb8 {[%emt 0:0:0]} 71. a7+ {[%emt 0:0:0]} Ka8 {[%emt 0:0:0]} 72. Ne6 {[%emt 0:0:0]} c5 {[%emt 0:0:0]} 73. Nc7# {[%emt 0:0:0]} 1-0